Cogmind - Beta 14 @@@ ROGUE MODE // 2024.12.26 @ 15:01:39 Player: KillHour Result: Destroyed by AB-6Q5(R) with Subdweller Machine Gun Performance ------------- Evolutions (0) 0 Regions Visited (3) 600 Robots Destroyed (43) 215 Value Destroyed (649) 649 Prototype IDs (2) 40 Alien Tech Used (0) 0 Bonus (0) 0 TOTAL SCORE: 1504 Bonus ------- None Cogmind --------- Core Integrity 0/250 Matter 286/300 Energy 250/250 System Corruption 0% Temperature Cool (26) Movement Rolling (170) Ox6 Location -10/Subcaves Parts ------- > --- POWER (1) -------- Ion Engine > --- PROPULSION (2) --- Wheel Subdweller Monowheel > --- UTILITY (2) ------ High-capacity Storage Unit Core Shielding > --- WEAPON (2) ------- Subdweller Beam Cannon Subdweller Beam Cannon > --- INVENTORY (20) --- Light Ion Engine Wheel Heat Sink Medium Storage Unit Experimental Sensor Array Improved Terrain Scanner Seismic Detector Light Assault Rifle Light Assault Rifle Rocket Launcher Mining Claw Scrap Shield Fragment (44) Scrap Shield Fragment (42) Peak State ------------ > --- POWER ------------ Ion Engine > --- PROPULSION ------- Subdweller Monowheel Subdweller Monowheel > --- UTILITY ---------- High-capacity Storage Unit Core Shielding > --- WEAPON ----------- Subdweller Beam Cannon Subdweller Beam Cannon > --- INVENTORY -------- Light Ion Engine Wheel Heat Sink Medium Storage Unit Experimental Sensor Array Improved Terrain Scanner Seismic Detector Light Assault Rifle Light Assault Rifle Rocket Launcher Mining Claw [Rating: 13] Favorites ----------- Power Ion Engine Engine Ion Engine Propulsion Wheel Wheel Wheel Utility Medium Storage Unit Device Sensor Array Storage Medium Storage Unit Processor Targeting Computer Protection Core Shielding Weapon Light Assault Rifle Energy Gun Medium Laser Energy Cannon Subdweller Beam Cannon Ballistic Gun Light Assault Rifle Special Weapon Mining Laser Slashing Weapon Mining Claw Build | -11 -10 -10 -10 ------- Run | Yrd Mat Min Sub Slots Evolved . | . . . . Power . | . . . . Propulsion . | . . . . Utility . | . . . . Weapon . | . . . . Parts Attached 41 | 8 8 17 8 Power 2 | 1 . 1 . Engine 2 | 1 . 1 . Core . | . . . . Reactor . | . . . . Propulsion 10 | 2 2 3 3 Treads . | . . . . Leg . | . . . . Wheel 10 | 2 2 3 3 Hover . | . . . . Flight . | . . . . Utility 10 | 2 2 3 3 Device 4 | 1 1 1 1 Storage 3 | 1 1 . 1 Processor 1 | . . 1 . Hackware . | . . . . Protection 2 | . . 1 1 Artifact . | . . . . Weapon 19 | 3 4 10 2 Energy Gun 4 | 2 2 . . Energy Cannon 2 | . . . 2 Ballistic Gun 8 | 1 1 6 . Ballistic Cannon . | . . . . Launcher . | . . . . Special Weapon 2 | . 1 1 . Impact Weapon . | . . . . Slashing Weapon 3 | . . 3 . Piercing Weapon . | . . . . Special Melee Weapon . | . . . . Unidentified Prototypes . | . . . . Parts Lost 9 | . 1 7 1 Power 1 | . . 1 . Propulsion 3 | . . 3 . Utility 1 | . . . 1 Weapon 4 | . 1 3 . Highest Loss Streak 2 | . 1 2 1 To Critical Strikes . | . . . . Average Slot Usage (%) 98 | . 99 97 100 Engine 13 | . 14 13 14 Wheel 27 | . 28 26 28 Device 4 | . 14 . 3 Storage 14 | . 14 14 14 Processor 7 | . . 11 . Protection 2 | . . 1 9 Energy Gun 3 | . 12 . . Energy Cannon 2 | . . . 19 Ballistic Gun 18 | . 14 22 8 Special Weapon 1 | . 1 2 . Slashing Weapon 1 | . . 2 . Peak Build Rating 13 | 9 9 9 13 Average Rating 8 | 5 8 8 11 On Entrance 6 | . 9 8 9 Naked Turns . | . . . . Heaviest Build 62 | 15 20 20 62 Greatest Support 40 | 20 20 20 40 Greatest Overweight (x) 2 | . . 1 2 Average Overweight (x) . | . . . . Largest Inventory Capacity 20 | 8 10 10 20 Average Capacity 10 | 7 9 10 16 Most Carried 14 | 8 10 10 14 Average Carried 9 | 6 9 9 12 Final Capacity 20 | 8 10 10 20 Final Carried 13 | 8 10 10 13 Class Distribution -------------------- 57% | Mutant 42% | Scavenger-Mutant Dominant Class ---------------- Mutant | -10/Materials Scavenger-Mutant | -10/Mines Mutant | -10/Subcaves Resources | -11 -10 -10 -10 ----------- Run | Yrd Mat Min Sub Matter Collected 835 | 339 220 205 71 Remotely . | . . . . Salvage Created 1248 | 217 570 365 96 Parts 88 | 20 37 22 9 Haulers Intercepted 2 | . 2 . . Recyclers Shooed . | . . . . Parts Field Recycled . | . . . . Retrieved Matter . | . . . . Parts Self-Destructed 10 | . . . 10 Prevented . | . . . . Kills | -11 -10 -10 -10 ------- Run | Yrd Mat Min Sub Combat Hostiles Destroyed 24 | . 7 15 2 Guns 20 | . 6 14 . Cannons 3 | . . 1 2 AOE 1 | . 1 . . Classes Destroyed 10 | 3 5 1 1 Worker 3 | 2 1 . . Builder 3 | . 2 1 . Tunneler 6 | 5 1 . . Hauler 2 | . 2 . . Recycler 3 | 1 1 1 . Watcher 3 | . 3 . . Swarmer 12 | . 3 9 . Grunt 9 | . 4 5 . Subdweller 2 | . . . 2 Assembled 1 | . . 1 . Best Kill Streak 8 | 8 4 4 2 Combat Bots Only 4 | . 3 4 2 Max Kills in Single Turn 2 | 1 2 1 1 Gunslinging . | . . . . Exploded 1 | . 1 . . Melee . | . . . . Uniques/NPCs Destroyed . | . . . . Combat | -11 -10 -10 -10 -------- Run | Yrd Mat Min Sub Hostile Shots Fired 123 | . 33 83 7 Missed 36 | . 9 24 3 Damage Taken 999 | . 283 566 150 Core 259 | . 60 128 71 Absorbed by Shields . | . . . . Redirected to Shielding 21 | . . 12 9 Core Remaining (%) 100 | 100 . . . Volleys Fired 134 | 23 52 53 6 Largest 2 | 2 2 2 2 Hottest 160 | 60 100 120 160 Shots Fired 241 | 46 98 86 11 Gun 221 | 46 92 78 5 Cannon 6 | . . . 6 Launcher . | . . . . Special 14 | . 6 8 . Kinetic 145 | 23 46 71 5 Thermal 67 | . 46 15 6 Explosive . | . . . . Electromagnetic 29 | 23 6 . . Robot Hit Streak 18 | 5 18 17 9 Robot Miss Streak 5 | 3 3 5 1 Penetration Max . | . . . . Secondary Targets 1 | . . 1 . Max Gunslinging Chain 1 | . . 1 . Shots Hit Robots 142 | 24 58 53 7 Core Hits 61 | 9 24 24 4 Critical Kills 1 | . . 1 . Critical Parts Destroyed 1 | . . 1 . Critical Strikes 6 | . 4 2 . Burn 4 | . 4 . . Destroy 2 | . . 2 . Melee Attacks 48 | . . 48 . Impact . | . . . . Slashing 48 | . . 48 . Piercing . | . . . . Sneak Attacks . | . . . . Combat Hostiles . | . . . . Follow-up Attacks . | . . . . Damage Inflicted 1826 | 315 846 526 139 Guns 1472 | 315 736 394 27 Cannons 112 | . . . 112 Explosions 87 | . 87 . . Melee . | . . . . Ramming 59 | . 23 36 . Kinetic 941 | 112 421 381 27 Thermal 585 | . 364 109 112 Explosive . | . . . . Electromagnetic 241 | 203 38 . . Impact . | . . . . Slashing . | . . . . Piercing . | . . . . Highest Corruption . | . . . . Average Corruption . | . . . . Corruption Purged . | . . . . Corruption Blocked . | . . . . Overload Shots . | . . . . Overflow Damage 3 | . 2 1 . Projectiles . | . . . . Explosions 2 | . 2 . . Melee 1 | . . 1 . Knockbacks . | . . . . Impact . | . . . . Kinetic . | . . . . Secondary . | . . . . Self-Inflicted Damage 65 | . 48 17 . Shots 1 | . 1 . . Rammed 6 | . 2 4 . Targets Rammed 6 | . 2 4 . Kicked . | . . . . Crushed . | . . . . Highest Temperature 80 | 20 60 80 46 Average Temperature 21 | 20 19 25 20 Received Heat Transfer 180 | . 78 87 15 Siege Activations . | . . . . Robots Corrupted . | . . . . Combat Hostiles . | . . . . Parts Fried 1 | 1 . . . Impact Corruptions 1 | . . 1 . Robots Melted . | . . . . Combat Hostiles . | . . . . Parts Melted 2 | . 1 1 . Heat Transferred 1595 | . 1210 237 148 Parts Sabotaged . | . . . . Parts Stolen . | . . . . Parts Stripped . | . . . . Power Chain Reactions 1 | . 1 . . Alert | -11 -10 -10 -10 ------- Run | Yrd Mat Min Sub Peak Influence 306 | 40 296 306 . Initial 115 | . 26 115 . Average 111 | 18 158 101 . Maximum Alert Level 1 | . 1 1 . Low Security (%) 81 | 100 59 88 . Level 1 18 | . 40 11 . Level 2 . | . . . . Level 3 . | . . . . Level 4 . | . . . . Level 5 . | . . . . High Security . | . . . . Max Security . | . . . . Squads Dispatched 2 | . 2 . . Investigation 1 | . 1 . . Extermination . | . . . . Reinforcement 1 | . 1 . . Assault . | . . . . Garrison . | . . . . Intercept . | . . . . Searches Triggered . | . . . . Construction Impeded . | . . . . Haulers Reinforced . | . . . . Active Scanning Responses . | . . . . Cargo Convoy Interrupts . | . . . . Stealth | -11 -10 -10 -10 --------- Run | Yrd Mat Min Sub Distress Signals 1 | . 1 . . Communications Jammed . | . . . . Distress Signals . | . . . . Times Spotted 41 | . 20 17 4 Peak Tracking Total 6 | . 6 4 2 Tactical Retreats 7 | . 4 3 . Traps | -11 -10 -10 -10 ------- Run | Yrd Mat Min Sub Traps Triggered 2 | . 1 . 1 Indirectly . | . . . . Trap Hack Attempts . | . . . . Triggered . | . . . . Disarmed . | . . . . Reprogrammed . | . . . . Reused . | . . . . Traps Extracted . | . . . . Installed . | . . . . Triggered . | . . . . Machines | -11 -10 -10 -10 ---------- Run | Yrd Mat Min Sub Machines Disabled . | . . . . Max in Single Turn . | . . . . Machines Repaired . | . . . . Machines Dismantled . | . . . . Machines Sabotaged . | . . . . Overloaded Fab Kills . | . . . . Hacking | -11 -10 -10 -10 --------- Run | Yrd Mat Min Sub Machines Accessed 8 | . 8 . . Terminals 7 | . 7 . . Fabricators . | . . . . Repair Stations . | . . . . Recycling Units 1 | . 1 . . Scanalyzers . | . . . . Garrison Access . | . . . . Total Hacks 30 | . 30 . . Successful 16 | . 16 . . Failed 14 | . 14 . . Catastrophic 1 | . 1 . . Database Lockouts . | . . . . Manual 21 | . 21 . . Terminals 28 | . 28 . . Fabricators . | . . . . Repair Stations . | . . . . Recycling Units 2 | . 2 . . Scanalyzers . | . . . . Garrison Access . | . . . . Terminal Hacks 5 | . 5 . . Prototype ID Bank 1 | . 1 . . Locate Traps 1 | . 1 . . Hauler Manifests 1 | . 1 . . Zone Layout 2 | . 2 . . Fabricator Hacks . | . . . . Repair Station Hacks . | . . . . Recycling Unit Hacks 1 | . 1 . . Report Inventory 1 | . 1 . . Scanalyzer . | . . . . Garrison Access Hacks . | . . . . Unauthorized Hacks 10 | . 10 . . Terminals 10 | . 10 . . Botnet 4 | . 4 . . Skim 6 | . 6 . . Fabricators . | . . . . Repair Stations . | . . . . Recycling Units . | . . . . Scanalyzers . | . . . . Garrison Access . | . . . . Data Cores Recovered . | . . . . Used . | . . . . Hacking Detections 7 | . 7 . . Full Trace Events 1 | . 1 . . Feedback Events . | . . . . Feedback Blocked . | . . . . Robot Schematics Acquired . | . . . . Robots Built . | . . . . Authchips . | . . . . Time . | . . . . Total Robot Build Rating . | . . . . Part Schematics Acquired . | . . . . Parts Built . | . . . . Authchips . | . . . . Time . | . . . . Total Part Build Rating . | . . . . Parts Repaired . | . . . . Time . | . . . . Parts Recycled . | . . . . Recycled Matter . | . . . . Retrieved Matter . | . . . . Retrieved Components . | . . . . Parts Scanalyzed . | . . . . Part Schematics Acquired . | . . . . Parts Damaged . | . . . . Bothacking | -11 -10 -10 -10 ------------ Run | Yrd Mat Min Sub Used RIF Installer . | . . . . Robots Hacked . | . . . . Non-combat . | . . . . Combat . | . . . . Robot Hacks Applied . | . . . . Relay Couplers Released . | . . . . Fabnet Peak Effective % . | . . . . Robots Rewired . | . . . . Allies Hacked . | . . . . Hacks Repelled . | . . . . Allies | -11 -10 -10 -10 -------- Run | Yrd Mat Min Sub Total Allies . | . . . . Largest Group . | . . . . Highest-Rated Group . | . . . . Highest-Rated Ally . | . . . . Total Orders . | . . . . Ally Attacks . | . . . . Total Damage . | . . . . Kills . | . . . . Allies Corrupted . | . . . . Allies Melted . | . . . . Intel | -11 -10 -10 -10 ------- Run | Yrd Mat Min Sub Robot Analysis Total . | . . . . Derelict Logs Recovered 2 | . . 2 . Drone Launches . | . . . . Drone Recoveries . | . . . . Exploration | -11 -10 -10 -10 ------------- Run | Yrd Mat Min Sub Turns Passed 3010 | 198 768 1703 341 Spaces Moved 2394 | 99 477 1531 287 Core 1 | 1 . . . Treads . | . . . . Legs . | . . . . Wheels 2393 | 98 477 1531 287 Hover . | . . . . Flight . | . . . . Fastest Speed 50 | 50 80 80 80 Average Speed 83 | 79 80 81 103 Slowest Speed 120 | 80 80 95 120 Overloaded Moves . | . . . . Propulsion Burnouts . | . . . . Robots Hopped . | . . . . Cave-ins Triggered . | . . . . Exploration Rate (%) 51 | 4 76 102 23 Regions Visited 3 Branch Regions 2 Pre-discovered Areas 1 | . . 1 . Known Exits Taken 1 | . . 1 . Unknown Exits Taken 2 | 1 1 . . Scrap Searched 1 | . . 1 . Spaces Dug 22 | . 6 16 . Terrain Destroyed 26 | . 8 17 1 Melee 16 | . . 16 . Projectile 8 | . 6 1 1 AOE 2 | . 2 . . Terrain Rammed . | . . . . Walls Destroyed . | . . . . Machines Disabled . | . . . . Actions | -11 -10 -10 -10 --------- Run | Yrd Mat Min Sub Total 3045 | 168 755 1802 320 Wait 383 | 29 201 142 11 Move 2391 | 98 476 1530 287 Hop . | . . . . Pick Up 27 | 10 8 6 3 Fast Attach 11 | 5 1 3 2 Attach 8 | 2 1 4 1 Detach 2 | . . . 2 Swap 22 | 1 6 10 5 Drop 13 | . 8 2 3 Fire 134 | 23 52 53 6 Melee 48 | . . 48 . Ram 6 | . 2 4 . Kick . | . . . . Crush . | . . . . Escape Stasis . | . . . . Rewire . | . . . . Trap . | . . . . Miscellaneous . | . . . . Route ------- -11/Scrapyard -10/Materials (discovered 3 exits: *Mat x2 / [*Min]) -10/Mines (discovered 3 exits: *Mat x2 / *Sub) -10/Subcaves (discovered 1 exit: [*Mat]) History --------- Turn | Location | Event 15 | -11/Scrapyard | Discovered new exit (range 15) 199 | -11/Scrapyard | Entered Materials 309 | -10/Materials | Build established: Mutant 351 | -10/Materials | Discovered new exit (range 18) 481 | -10/Materials | Discovered new exit (range 11) 751 | -10/Materials | Discovered new exit (range 10) 846 | -10/Materials | Learned Storage emergency access door positions 907 | -10/Materials | Learned Storage emergency access door positions 958 | -10/Materials | Learned location of 2 exits from Mines 967 | -10/Materials | Entered Mines 968 | -10/Mines | Identified exit to Subcaves 968 | -10/Mines | Identified exit to Materials 985 | -10/Mines | Met a Derelict bent on vengeance 1112 | -10/Mines | Learned location of Storage (-9) 1172 | -10/Mines | Learned Materials stockpile data 1266 | -10/Mines | Core integrity fell below 50% 1336 | -10/Mines | Excavation squad dispatched 1336 | -10/Mines | A large section of the Mines collapsed 1761 | -10/Mines | Discovered exit to Materials (range 7) 1887 | -10/Mines | Learned location of 1 exit from Materials 1903 | -10/Mines | Received a Rocket Launcher from a helpful Derelict 1969 | -10/Mines | Found a damaged Exp. Sensor Array with a note attached 1971 | -10/Mines | Found Prototype Device 1992 | -10/Mines | Build established: Scavenger-Mutant 2670 | -10/Mines | Entered Subcaves 2698 | -10/Subcaves | Core integrity fell below 20% 2750 | -10/Subcaves | Shifting Twisted Machinery released Sub. Beam Cannon 2757 | -10/Subcaves | Shifting Twisted Machinery released Piercing Trap 2822 | -10/Subcaves | Discovered new exit (range 12) 3011 | -10/Subcaves | Destroyed by AB-6Q5(R) with Subdweller Machine Gun Last Messages --------------- 02758_ Acquired Sub. Beam Cannon. 02780_ HE-9TD(R) destroyed. 02784_ Subatomizers dissect the Sub. Monowheel. 02786_ FY-LGC(R) affixes Scrap Shield Fragment to Scrap Shield. 02791_ FY-LGC(R) destroyed. 02794_ Subatomizers dissect the Disposable Heat Sink. 02794_ Acquired 35 matter. 02797_ Dropped Wheel. 02804_ Acquired Sub. Beam Cannon. 02805_ Subatomizers dissect the Disposable Heat Sink. 02807_ Acquired Wheel. 02811_ Acquired Scrap Shield Fragment. 02816_ Acquired 36 matter. 02822_ EXIT=FOUND 02931_ Subatomizers dissect the Wheel, destroying it. 02946_ Subatomizers dissect the Disposable Heat Sink. 02961_ Sub. Monowheel shoots sparks and powers down. 02964_ Dropped Broken Sub. Monowheel. 03006_ Sub. Monowheel shoots sparks and powers down. 03009_ Sub. Beam Cannon shoots sparks and powers down. Map ----- +----------------------------------------------------+ | ???????????????????????## #?# "# | | ??????????????????????## ### = ## | | ?????????????????????## ## #####? | | ?????????????????????# # ####????? | | ????????????????????## ### ##???????? | | ???????????????????## ### #????????? | | ?????????????????### ##????????? | | ???????????????### #?????????? | | ??????????????## ##?????????? | | ??????????????# ### ##??????????? | | ??????????????# ##?## ##???????????? | | ??????????????# #####???####????????????? | | ??????????????# ####????????????????????? | | ??????????????## #????????????????????? | | ???????????????# #????????????????????? | | ??????????????## #????????????????????? | | ??????????????# ## #????????????????????? | | ??????????????## ### #????????????????????? | | ???????????????## #?# #????????????????????? | | ????????????????##### #????????????????????? | | ??????????????????# ##???????????????????? | | ??????????????????# #???????????????????? | | ??????????????????## #???????????????????? | | ???????????????????# #???????????????????? | | ???????????????????# ###???????????????????? | | ???????????????????#@ #????????????????????? | | ???????????????????#R #????????????????????? | | ?????????????????? ##????????????????????? | | ???????????????? R #????????????????????? | | ??????????????# #????????????????????? | | ??????????????## ##????????????????????? | | ???????????????## ### #?????????????????????? | | ????????????????##??? ?????????????????????? | | ????????????????????? #?????????????????????? | | ????????????????????? #?????????????????????? | | ????????????????????? ?????????????????????? | | ?????????????????????##?????????????????????? | | ????????????????????????????????????????????? | | ????????????????????????????????????????????? | | ????????????????????????????????????????????? | | ????????????????????????????????????????????? | | ????????????????????????????????????????????? | | ????????????????????????????????????????????? | | ????????????????????????????????????????????? | | ????????????????????????????????????????????? | | ????????????????????????????????????????????? | | ????????????????????????????????????????????? | | ????????????????????????????????????????????? | | ????????????????????????????????????????????? | | ????????????????????????????????????????????? | +----------------------------------------------------+ Best States ------------- Heat Dissipation 25 Energy Generation 10 Energy Capacity 250 Matter Stores 300 Matter Capacity 300 Sight Range 16 Robot Scan Range 14 Terrain Scan Range 16 Terrain Scan Density 10 Core Shielding 20 Evasion (%) 44 Targeting Accuracy 5 Item Schematics ----------------- None Robot Schematics ------------------ None Fabricated ------------ Nothing Alien Tech Used ----------------- None Achievements -------------- None Challenges ------------ None Game ------ Seed StorageScanNanoactuators Manual? 1 Play Time 00:40:17 Cumulative 41.5 hours Start 2024.12.26 @ 14:21:53 End 2024.12.26 @ 15:01:39 Sessions 1 Manual Loads 0 Difficulty Rogue Special Mode None Game No. 19 Rogue 19 Adventurer 0 Explorer 0 Win Type - Total 0 Types 0/0/0/0/0/0/0/0/0 Lore% 29 Gallery% 24 Achievement% 20 Wizard Run 0 Options --------- Layout 1 ASCII 0 Keyboard 0 Movement Numpad Keybinds 0 Fullscreen 2 Font 48/Smallcaps Map View 130x35 Zoom Use 0% Tactical HUD 1 Map Filters NONE Filters NONE Steam 1 RUN: da0442a7-9f8e-45db-b008-dcd1180a9c33